bitfinex-derivatives/quotes_ETHF0:USTF0_20250624
["timestamp","ask_amount","ask_price","bid_price","bid_amount"]
[1750757482144,3.2078,2430.5,2430.4,1.19806589]
[1750757482646,3.2078,2430.5,2430.4,2.63206589]
[1750757483447,3.2078,2430.5,2430.4,1.19806589]
[1750757484044,3.2078,2430.5,2430.4,2.40039461]
[1750757484241,3.2078,2430.5,2430.4,1.19806589]
[1750757484442,8.2078,2430.5,2430.0,1.20232872]
[1750757484642,1.3485,2430.4,2430.1,1.19905792]
[1750757484842,3.2078,2430.2,2429.9,1.20232872]
[1750757485048,3.2078,2430.2,2430.0,1.19913135]
[1750757485244,1.3485,2430.1,2429.7,1.20232872]
[1750757485439,1.3485,2430.1,2429.6,1.60244977]
[1750757485440,3.2078,2429.8,2429.6,1.20232872]
[1750757486749,3.2078,2429.8,2429.7,1.4277]
[1750757486950,3.2078,2429.8,2429.7,2.63002872]
[1750757487151,3.2078,2430.1,2429.7,2.63002872]
[1750757487450,3.2078,2430.1,2429.8,1.4277]
[1750757487745,3.2078,2430.1,2429.7,1.20232872]
[1750757488051,3.2078,2429.8,2429.6,1.20232872]
[1750757489343,3.2078,2429.8,2429.3,1.20232872]
[1750757489542,3.2078,2429.4,2429.3,1.20232872]
[1750757490245,3.2078,2429.4,2429.0,1.20232872]
[1750757490445,3.2078,2429.1,2429.0,1.20232872]
[1750757490646,3.2078,2429.1,2428.9,1.20232872]
[1750757490846,3.2078,2429.1,2428.8,1.20232872]
[1750757491243,3.2078,2429.5,2428.9,2.56792872]
[1750757491551,3.2078,2429.5,2429.0,1.20232872]
[1750757491752,3.2078,2429.5,2429.1,1.3404]
[1750757491940,3.2078,2429.2,2429.1,2.54272872]
[1750757492140,3.2078,2429.5,2429.1,2.54272872]
[1750757492445,3.2078,2429.5,2429.3,1.20232872]
[1750757492752,3.2078,2429.5,2429.4,1.3404]
[1750757493853,3.2078,2429.5,2429.2,1.20232872]
[1750757494150,3.2078,2429.5,2429.0,1.20232872]
[1750757494448,3.2078,2429.1,2428.8,1.3404]
[1750757494652,3.2078,2429.1,2428.4,1.20232872]
[1750757494948,3.2078,2428.7,2428.4,1.20232872]
[1750757495148,3.2078,2428.7,2428.3,1.20232872]
[1750757495449,3.2078,2428.4,2428.1,1.20232872]
[1750757495652,3.2078,2428.4,2428.0,1.20232872]
[1750757495853,3.2078,2428.1,2427.8,1.20232872]
[1750757496252,3.2078,2428.6,2427.6,2.59412872]
[1750757496456,3.2078,2428.3,2427.8,1.20232872]
[1750757496750,3.2078,2428.3,2427.9,1.3918]
[1750757497156,3.2078,2428.0,2427.9,1.3918]
[1750757497647,3.2078,2428.3,2427.9,6.3918]
[1750757497951,3.2078,2428.8,2428.1,1.20232872]
[1750757498256,3.2078,2429.1,2428.3,4.4062057]
[1750757498451,3.2078,2429.5,2428.9,3.2078]
[1750757498650,3.2078,2429.5,2429.0,1.4337]
[1750757500652,3.2078,2429.2,2429.0,1.4337]
[1750757501247,3.2078,2429.7,2429.0,1.4337]
[1750757501449,3.2078,2429.2,2429.0,1.4337]
[1750757501647,3.2078,2429.6,2429.0,1.4337]
[1750757502058,3.2078,2429.2,2429.0,1.4337]
[1750757502357,3.2078,2429.6,2429.0,1.4337]
[1750757502560,3.2078,2429.6,2429.0,4.6415]
[1750757502752,3.2078,2429.6,2429.0,5.8399057]
[1750757503255,3.2078,2430.0,2429.3,3.2078]
[1750757503457,3.2078,2429.6,2429.4,1.4075]
[1750757504351,3.2078,2430.0,2429.4,1.4075]
[1750757505449,3.2078,2429.6,2429.4,1.4075]
[1750757505849,3.2078,2429.6,2429.0,1.1984057]
[1750757506049,3.2078,2429.6,2429.2,1.382]
[1750757506459,3.2078,2429.9,2429.2,5.7882057]
[1750757506662,3.2078,2430.4,2429.8,3.2078]
[1750757506860,3.2078,2430.8,2429.9,1.3713]
[1750757507058,3.2078,2430.4,2429.9,2.5697057]
[1750757507654,3.2078,2430.4,2430.0,1.1984057]
[1750757507856,3.2078,2430.4,2430.1,2.5697057]
[1750757508060,3.2078,2430.8,2430.3,3.2078]
[1750757508363,3.2078,2431.1,2430.4,1.3713]
[1750757508551,3.2078,2431.6,2430.8,1.1984057]
[1750757508857,3.2078,2431.6,2430.9,2.5697057]
[1750757509056,3.2078,2431.3,2430.9,1.3713]
[1750757509556,3.2078,2431.3,2431.1,0.33859716]
[1750757510458,8.2078,2431.3,2431.1,0.33859716]
[1750757510660,1.4379,2431.2,2430.2,2.5259057]
[1750757510854,3.2078,2431.6,2430.6,3.2078]
[1750757511055,3.2078,2431.6,2430.6,4.4062057]
[1750757511557,3.2078,2431.3,2430.6,4.4062057]
[1750757511762,1.4379,2431.5,2430.6,3.2078]
[1750757511956,1.4379,2431.5,2430.5,2.5259057]
[1750757511957,3.2078,2431.2,2430.5,2.5259057]
[1750757512154,3.2078,2431.2,2430.5,1.3275]
[1750757512753,3.2078,2430.9,2430.3,3.2078]
[1750757512956,3.2078,2430.6,2430.1,1.1984057]
[1750757513161,3.2078,2430.6,2430.0,1.3698]
[1750757513557,3.2078,2430.3,2429.7,1.1984057]
[1750757513757,3.2078,2430.3,2429.8,1.3698]
[1750757513956,1.352,2430.5,2429.8,1.3698]
[1750757514364,3.2078,2430.4,2429.8,1.3698]
[1750757515458,3.2078,2430.7,2429.8,1.3698]
[1750757515767,1.352,2430.6,2429.8,2.5682057]
[1750757516358,3.2078,2430.8,2429.9,3.2078]
[1750757516553,3.2078,2430.8,2429.9,4.4062057]
[1750757517066,3.2078,2431.1,2429.9,4.4062057]
[1750757517262,3.2078,2431.1,2430.3,3.2078]
[1750757517463,3.2078,2431.1,2430.4,1.3697]
[1750757518076,3.2078,2431.1,2430.6,3.2078]
[1750757518261,3.2078,2431.3,2430.7,1.3697]
[1750757518657,3.2078,2431.0,2430.3,3.2078]
[1750757518858,3.2078,2431.0,2430.4,1.3697]
[1750757520455,3.2078,2431.0,2430.1,1.1984057]
[1750757520661,3.2078,2430.4,2430.0,1.4448]
[1750757520862,3.2078,2430.5,2430.0,1.4448]
[1750757521265,3.2078,2430.5,2429.7,1.1984057]
[1750757521460,1.4285,2430.4,2429.8,1.4448]
[1750757521855,3.2078,2430.0,2429.6,1.1984057]
[1750757522060,3.2078,2430.0,2429.3,1.9684]
[1750757522256,3.2078,2429.7,2429.1,1.1984057]
[1750757522468,1.3976,2429.9,2429.2,3.2078]
[1750757522660,3.2078,2430.0,2429.2,4.5137]
[1750757522862,1.3976,2429.9,2429.2,4.5137]
[1750757523061,0.7012,2431.3,2429.8,3.2078]
[1750757523062,3.2078,2430.4,2429.8,3.2078]
[1750757523256,0.6987,2431.1,2429.9,4.5137]
[1750757523257,3.2078,2430.5,2429.9,4.5137]
[1750757523461,3.2078,2430.8,2430.2,3.2078]
[1750757523666,3.2078,2430.8,2430.3,1.3059]
[1750757524262,3.2078,2430.4,2429.3,1.8505057]
[1750757524469,3.2078,2430.6,2429.7,3.2078]
[1750757524668,3.2078,2430.3,2429.8,1.3059]
[1750757525368,3.2078,2431.6,2430.1,1.1984057]
[1750757525664,3.2078,2431.7,2430.7,3.2078]
[1750757525871,1.3918,2432.0,2430.7,3.2078]
[1750757525872,3.2078,2431.2,2430.8,1.3902]
[1750757526869,3.2078,2431.2,2430.6,1.19103874]
[1750757527061,3.2078,2430.9,2430.3,4.598]
[1750757527257,1.3918,2431.1,2430.3,5.78903874]
[1750757527474,3.2078,2430.9,2430.3,5.78903874]
[1750757527874,3.2078,2430.9,2430.3,2.58123874]
[1750757528073,3.2078,2430.6,2430.2,1.19103874]
[1750757528469,3.2078,2430.4,2430.1,1.19103874]
[1750757528776,3.2078,2430.4,2429.9,1.19103874]
[1750757528965,1.3345,2430.3,2430.0,1.19103874]
[1750757529470,3.2078,2430.8,2430.1,1.19103874]
[1750757529673,3.2078,2430.8,2430.0,1.19103874]
[1750757529870,3.2078,2430.8,2430.1,1.19103874]
[1750757529871,1.3345,2430.7,2430.1,1.19103874]
[1750757530272,3.2078,2430.5,2430.0,1.19103874]
[1750757530475,3.2078,2430.3,2430.0,1.19103874]
[1750757530672,3.2078,2430.7,2430.1,1.19103874]
[1750757531175,1.3555,2430.6,2430.1,1.19103874]
[1750757531376,1.3555,2430.6,2430.1,2.54323874]
[1750757531574,1.3555,2430.6,2430.1,5.75103874]
[1750757532079,1.3555,2430.6,2430.1,2.54323874]
[1750757532272,1.3555,2430.6,2430.2,1.19103874]
[1750757532670,1.3555,2430.6,2430.1,1.19103874]
[1750757533267,1.3555,2430.6,2430.3,1.19103874]
[1750757533462,1.3555,2430.6,2430.2,1.19103874]
[1750757533673,3.2078,2430.4,2430.2,1.19103874]
[1750757533973,3.2078,2430.4,2430.1,1.58805165]
[1750757533974,3.2078,2430.4,2429.9,1.19103874]
[1750757534277,3.2078,2430.1,2429.6,1.19103874]
[1750757534472,3.2078,2429.8,2429.5,1.19103874]
[1750757534676,3.2078,2429.8,2429.4,1.19103874]
[1750757534876,1.3218,2429.7,2429.4,1.19103874]
[1750757536372,1.3218,2429.7,2429.3,1.19103874]
[1750757536583,1.3218,2429.7,2429.3,1.2004186]
[1750757537179,3.2078,2429.8,2429.3,1.2004186]
[1750757537473,1.4376,2429.6,2429.3,1.2004186]
[1750757537677,1.4376,2429.6,2429.2,1.2004186]
[1750757538775,3.2078,2430.2,2429.5,1.58805165]
[1750757538980,3.2078,2430.2,2429.6,1.19839259]
[1750757539173,3.2078,2430.2,2429.7,1.19839259]
[1750757539476,3.2078,2430.2,2429.8,2.54219259]
[1750757540070,3.2078,2430.2,2429.7,1.19839259]
[1750757540271,3.2078,2430.2,2429.9,1.19839259]
[1750757540574,3.2078,2430.2,2429.8,1.19839259]
[1750757540874,3.2078,2429.9,2429.7,1.19839259]
[1750757541178,3.2078,2429.9,2429.6,1.19839259]
[1750757541372,1.3367,2430.1,2429.6,1.19839259]
[1750757541567,3.2078,2429.9,2429.6,1.19839259]
[1750757541772,3.2078,2429.9,2429.5,1.19839259]
[1750757541975,3.2078,2429.9,2429.7,1.19839259]
[1750757542179,3.2078,2429.9,2429.6,1.19839259]
[1750757542680,1.3367,2429.8,2429.5,1.19839259]
[1750757545078,3.2078,2429.6,2429.4,1.19839259]
[1750757545281,3.2078,2429.6,2429.1,1.19839259]
[1750757545481,1.3112,2429.5,2429.1,1.19839259]
[1750757546181,3.2078,2429.3,2428.9,1.19839259]
[1750757547279,3.2078,2429.3,2428.9,2.56909259]
[1750757549781,3.2078,2429.3,2428.8,1.19839259]
[1750757549979,3.2078,2429.3,2428.9,1.19839259]
[1750757550279,3.2078,2429.3,2428.8,2.95455165]
[1750757550280,3.2078,2429.3,2429.0,1.3665]
[1750757550485,3.2078,2429.3,2428.8,1.19839259]
[1750757550684,3.2078,2429.3,2428.8,2.56489259]
[1750757550889,3.2078,2429.3,2428.8,1.19839259]
[1750757551080,1.4011,2429.2,2428.8,1.19839259]
[1750757551282,3.2078,2429.0,2428.6,1.19839259]
[1750757551482,3.2078,2429.0,2428.4,1.19839259]
[1750757551683,3.2078,2429.0,2428.4,2.56489259]
[1750757552489,2.113,2429.9,2428.5,1.19839259]
[1750757552490,3.2078,2429.3,2428.5,1.19839259]
[1750757552682,1.4297,2429.2,2428.5,1.19839259]
[1750757552986,3.2078,2429.3,2428.6,1.19839259]
[1750757553385,3.2078,2429.3,2428.7,2.51079259]
[1750757553587,3.2078,2429.3,2428.8,1.19839259]
[1750757553784,3.2078,2429.3,2428.9,1.3124]
[1750757554882,3.2078,2429.6,2429.0,3.2078]
[1750757555088,3.2078,2429.6,2428.9,1.19839259]
[1750757555389,3.2078,2429.6,2429.0,1.3124]
[1750757555585,3.2078,2429.6,2428.9,1.19839259]
[1750757555785,3.2078,2429.0,2428.6,1.19839259]
[1750757555994,3.2078,2429.0,2428.5,1.19839259]
[1750757556486,3.2078,2428.6,2428.2,2.59289259]
[1750757556693,3.2078,2428.6,2428.1,1.19839259]
[1750757556988,3.2078,2428.3,2427.9,1.3945]
[1750757557780,1.3146,2428.9,2428.0,3.2078]
[1750757557781,3.2078,2428.7,2428.0,3.2078]
[1750757557984,3.2078,2428.7,2428.0,1.19839259]
[1750757558393,3.2078,2428.7,2428.2,1.19839259]
[1750757558689,3.2078,2428.7,2428.3,1.3943]
[1750757559190,3.2078,2429.0,2428.3,1.3943]
[1750757559381,3.2078,2429.4,2428.6,1.19839259]
[1750757559578,3.2078,2429.4,2428.7,1.19839259]
[1750757559782,3.2078,2429.4,2428.8,1.3943]
[1750757560690,3.2078,2429.1,2428.8,1.3943]
[1750757562094,3.2078,2429.1,2428.6,1.19839259]
[1750757562494,3.2078,2429.1,2428.7,1.3901]
[1750757562791,3.2078,2429.1,2428.5,1.19839259]
[1750757564385,3.2078,2429.1,2428.6,1.19839259]
[1750757564595,3.2078,2429.1,2428.7,1.3995]
[1750757565202,3.2078,2429.1,2428.5,1.19839259]
[1750757565386,3.2078,2429.1,2428.5,2.59789259]
[1750757565689,3.2078,2428.8,2428.4,1.19839259]
[1750757565897,3.2078,2428.5,2428.1,1.19839259]
[1750757566191,3.2078,2428.2,2428.0,1.19839259]
[1750757566391,3.2078,2428.7,2427.9,1.19839259]
[1750757566600,3.2078,2428.5,2427.9,1.19839259]
[1750757566797,3.2078,2428.5,2428.0,1.19839259]
[1750757566998,3.2078,2428.5,2428.1,1.3995]
[1750757567493,3.2078,2428.8,2428.1,2.59789259]
[1750757568093,3.2078,2428.8,2428.2,1.19839259]
[1750757568297,3.2078,2428.4,2427.8,1.19839259]
[1750757568496,3.2078,2428.1,2427.6,1.19839259]
[1750757568694,0.6654,2429.0,2427.4,1.58805165]
[1750757568695,3.2078,2427.7,2427.4,1.19839259]
[1750757568899,3.2078,2427.7,2427.2,2.38207748]
[1750757568900,3.2078,2427.7,2427.2,1.19839259]
[1750757569094,3.2078,2427.7,2427.3,1.3249]
[1750757569293,3.2078,2427.4,2427.3,1.3249]
[1750757569491,3.2078,2427.7,2427.1,1.19839259]
[1750757569690,3.2078,2427.3,2427.1,1.19839259]
[1750757570202,3.2078,2427.3,2427.0,1.19839259]
[1750757570603,3.2078,2427.3,2426.9,1.19839259]
[1750757570804,3.2078,2427.0,2426.8,2.52329259]
[1750757571097,3.2078,2427.3,2426.8,2.52329259]
[1750757571600,3.2078,2427.0,2426.4,1.19839259]
[1750757571804,3.2078,2426.9,2426.1,4.40619259]
[1750757571999,3.2078,2426.9,2426.5,3.2078]
[1750757572203,3.2078,2426.9,2426.6,1.3798]
[1750757572505,3.2078,2427.1,2426.6,1.3798]
[1750757572803,1.4353,2427.9,2426.0,4.40663624]
[1750757572804,3.2078,2426.8,2426.0,4.40663624]
[1750757572999,3.2078,2426.6,2425.9,1.19883624]
[1750757573205,3.2078,2426.6,2426.0,3.2078]
[1750757573395,3.2078,2426.6,2426.0,4.40663624]
[1750757573598,3.2078,2426.6,2426.1,1.19883624]
[1750757573899,3.2078,2427.2,2426.3,3.2078]
[1750757574105,3.2078,2427.5,2426.4,1.19883624]
[1750757574403,3.2078,2427.3,2426.5,2.62173624]
[1750757575101,3.2078,2427.3,2426.5,1.4229]
[1750757575701,3.2078,2427.3,2426.6,3.2078]
[1750757576595,3.2078,2427.3,2426.5,2.62173624]
[1750757577000,3.2078,2427.0,2426.5,1.4229]
[1750757579704,3.2078,2427.3,2426.7,3.2078]
[1750757580004,3.2078,2427.3,2426.8,1.3456]
[1750757580196,3.2078,2427.0,2426.4,3.2078]
[1750757580396,3.2078,2427.0,2426.5,1.3456]
[1750757581004,3.2078,2427.3,2426.5,1.3456]
[1750757581305,3.2078,2427.3,2426.8,3.2078]
[1750757581505,3.2078,2427.3,2426.5,2.54443624]
[1750757581506,3.2078,2427.3,2426.9,1.3456]
[1750757582007,1.3064,2428.0,2426.4,1.58805165]
[1750757582008,3.2078,2427.0,2426.4,1.19883624]
[1750757582306,3.2078,2427.0,2426.5,4.5534]
[1750757584212,3.2078,2427.3,2426.8,3.2078]
[1750757584402,3.2078,2427.3,2426.9,1.391]
[1750757586109,1.3064,2428.0,2426.5,4.40663624]
[1750757586110,3.2078,2427.0,2426.5,1.19883624]
[1750757586297,3.2078,2427.0,2426.5,1.3231]
[1750757588404,3.2078,2427.0,2426.2,4.40663624]
[1750757588606,3.2078,2427.0,2426.3,1.3231]
[1750757589410,3.2078,2427.3,2426.5,3.2078]
[1750757589612,3.2078,2427.7,2426.9,4.40663624]
[1750757589813,3.2078,2427.7,2427.0,1.3317]
[1750757590312,3.2078,2427.7,2427.0,2.53053624]
[1750757591011,3.2078,2428.0,2427.4,3.2078]
[1750757591212,3.2078,2428.0,2427.5,1.3317]
[1750757591411,3.2078,2427.6,2427.1,1.19883624]
[1750757591614,3.2078,2427.6,2427.0,2.53053624]
[1750757592016,3.2078,2427.3,2427.0,1.3317]
[1750757592222,1.4192,2427.5,2427.0,1.3317]
[1750757592521,3.2078,2427.3,2426.8,1.19883624]
[1750757592716,3.2078,2426.9,2426.8,1.19883624]
[1750757592919,3.2078,2426.9,2426.6,1.19883624]
[1750757593222,3.2078,2427.1,2426.5,2.60873624]
[1750757593422,3.2078,2426.8,2426.5,2.60873624]
[1750757593614,1.4192,2427.0,2426.4,4.40663624]
[1750757593813,3.2078,2426.8,2426.4,4.40663624]
[1750757594712,3.2078,2426.5,2426.2,1.19883624]
[1750757594912,3.2078,2426.5,2426.1,1.19883624]
[1750757595117,3.2078,2426.2,2426.1,1.19883624]
[1750757596218,3.2078,2426.2,2426.0,1.19883624]
[1750757597122,3.2078,2426.2,2425.8,1.19883624]
[1750757597315,3.2078,2425.9,2425.8,1.19883624]
[1750757597513,3.2078,2425.9,2425.7,1.19883624]
[1750757597718,3.2078,2425.9,2425.3,1.19883624]
[1750757597914,3.2078,2425.9,2425.4,2.56633624]
[1750757598111,3.2078,2425.9,2425.4,1.19883624]
[1750757598315,3.2078,2425.9,2425.5,1.19883624]
[1750757598625,3.2078,2425.6,2425.4,1.19883624]
[1750757599428,3.2078,2425.6,2425.3,1.19883624]
[1750757600220,3.2078,2425.6,2425.2,1.19883624]
[1750757600722,3.2078,2425.6,2425.3,1.3675]
[1750757600913,3.2078,2425.6,2425.3,2.56633624]
[1750757601317,3.2078,2425.6,2425.3,1.19883624]
[1750757601718,3.2078,2425.6,2425.4,1.3966]
[1750757601918,3.2078,2425.6,2425.3,1.19883624]
[1750757602126,3.2078,2425.7,2425.2,1.19883624]
[1750757602528,3.2078,2426.0,2425.4,3.2078]
[1750757602728,3.2078,2426.0,2425.6,1.19883624]
[1750757603228,3.2078,2426.0,2425.6,2.59543624]
[1750757604228,3.2078,2426.0,2425.7,1.19883624]
[1750757604429,3.2078,2426.0,2425.8,1.3135]
[1750757605534,3.2078,2426.3,2425.7,1.19883624]
[1750757605829,1.3723,2426.2,2425.7,1.19883624]
[1750757606220,3.2078,2426.3,2425.8,1.3135]
[1750757606420,3.2078,2426.3,2426.1,1.19883624]
[1750757606618,4.5801,2426.9,2426.1,1.19883624]
[1750757606828,3.2078,2427.0,2426.4,3.2078]
[1750757607025,3.2078,2427.0,2426.2,2.51233624]
[1750757607429,3.2078,2426.7,2426.2,2.51233624]
[1750757607624,3.2078,2426.7,2426.3,1.3925]
[1750757607824,3.2078,2426.7,2426.4,3.2078]
[1750757608027,1.3738,2427.1,2426.5,1.3925]
[1750757608231,3.2078,2427.3,2426.7,4.40663624]
[1750757608536,4.5816,2428.0,2427.1,1.19883624]
[1750757608734,3.2078,2427.3,2427.0,1.19883624]
[1750757608930,3.2078,2427.3,2426.9,1.19883624]
[1750757609127,3.2078,2427.0,2426.6,1.19883624]
[1750757609325,3.2078,2427.0,2426.4,1.58805165]
[1750757609326,3.2078,2427.0,2426.5,2.59133624]
[1750757610633,3.2078,2426.9,2426.5,2.59133624]
[1750757611026,3.2078,2427.2,2426.5,2.59133624]
[1750757611226,1.3049,2427.1,2426.5,2.59133624]
[1750757611539,3.2078,2427.2,2426.5,2.59133624]
[1750757611827,3.2078,2427.2,2426.6,1.19883624]
[1750757612232,3.2078,2427.2,2426.5,2.59133624]
[1750757612435,1.3049,2427.1,2426.5,2.59133624]
[1750757613629,3.2078,2427.2,2426.6,3.2078]
[1750757613833,0.07172559,2427.9,2426.7,1.19883624]
[1750757613834,3.2078,2427.5,2426.7,1.19883624]
[1750757614135,1.3543,2427.4,2426.8,1.3734]
[1750757614333,3.2078,2427.2,2426.8,1.3734]
[1750757615126,3.2078,2427.2,2426.7,1.19883624]
[1750757615930,3.2078,2426.9,2426.5,1.19883624]
[1750757616131,3.2078,2426.9,2426.4,1.20221105]
[1750757616335,3.2078,2426.6,2426.3,1.20221105]
[1750757616537,3.2078,2426.6,2426.2,1.20221105]
[1750757616734,3.2078,2426.6,2426.3,1.4074]
[1750757617233,3.2078,2426.9,2426.5,1.20221105]
[1750757617438,3.2078,2426.9,2426.6,1.4074]
[1750757617635,3.2078,2426.9,2426.5,1.20221105]
[1750757617835,3.2078,2426.9,2426.3,1.20221105]
[1750757618039,3.2078,2426.6,2426.3,1.20221105]
[1750757618340,3.2078,2426.6,2426.2,1.20221105]
[1750757618639,3.2078,2426.6,2426.1,1.20221105]
[1750757618843,3.2078,2426.6,2426.0,2.60961105]
[1750757619227,1.3487,2426.5,2426.0,2.60961105]
[1750757620138,3.2078,2426.3,2426.0,2.60961105]
[1750757620341,3.2078,2426.3,2426.0,1.20221105]
[1750757620536,1.3487,2426.5,2426.0,1.20221105]
[1750757620732,3.2078,2426.2,2425.9,1.20221105]
[1750757621037,3.2078,2426.2,2425.8,1.20221105]
[1750757621635,3.2078,2425.9,2425.5,1.20221105]
[1750757621837,3.2078,2425.9,2425.4,1.20221105]
[1750757622334,3.2078,2425.9,2425.4,2.64741105]
[1750757622539,3.2078,2425.9,2425.4,1.20221105]
[1750757622840,1.4076,2425.8,2425.4,1.20221105]
[1750757623041,3.2078,2425.6,2425.0,1.20221105]
[1750757623244,3.2078,2425.6,2424.9,1.58805165]
[1750757623245,3.2078,2425.3,2424.9,2.64741105]
[1750757623543,3.2078,2425.0,2424.6,1.20221105]
[1750757623837,3.2078,2425.5,2424.9,1.20221105]
[1750757624041,3.2078,2425.5,2425.2,1.20413438]
[1750757624241,3.2078,2425.9,2425.3,4.653]
[1750757624444,3.2078,2425.9,2425.4,1.20413438]
[1750757624643,3.2078,2425.9,2425.5,1.4452]
[1750757628548,3.2078,2425.9,2425.5,2.64933438]
[1750757628850,3.2078,2425.9,2425.5,1.4452]
[1750757629545,3.2078,2425.9,2425.4,1.20413438]
[1750757629738,3.2078,2425.6,2425.4,1.20413438]
[1750757629942,3.2078,2425.6,2425.3,1.20413438]
[1750757630151,3.2078,2425.6,2425.2,1.58805165]
[1750757630152,3.2078,2425.6,2425.2,1.20413438]
[1750757630656,3.2078,2425.6,2425.1,1.20413438]
[1750757631150,3.2078,2425.6,2425.2,1.20413438]
[1750757631555,3.2078,2425.6,2425.1,2.64833438]
[1750757632054,3.2078,2425.3,2425.1,2.64833438]
[1750757633054,3.2078,2425.6,2425.0,1.20413438]
[1750757633246,1.3772,2425.5,2425.0,1.20413438]
[1750757633446,3.2078,2425.2,2424.9,1.20413438]
[1750757633850,3.2078,2425.2,2424.9,2.62573438]
[1750757634153,3.2078,2425.2,2424.8,1.20413438]
[1750757634354,3.2078,2425.2,2424.8,2.62633438]
[1750757634544,3.2078,2425.2,2424.7,1.20413438]
[1750757634742,3.2078,2424.9,2424.7,1.20413438]
[1750757634945,3.2078,2424.9,2424.6,1.20413438]
[1750757635347,3.2078,2424.9,2424.5,1.58805165]
[1750757635348,3.2078,2424.9,2424.5,1.20413438]
[1750757635551,3.2078,2424.6,2423.8,4.63596343]
[1750757635852,3.2078,2424.6,2424.1,1.4222]
[1750757636254,3.2078,2424.6,2424.0,1.20413438]
[1750757636445,3.2078,2424.6,2424.1,1.4222]
[1750757636642,3.2078,2424.6,2423.8,1.86373438]
[1750757636841,2.7243,2424.8,2423.8,3.2078]
[1750757636842,3.2078,2424.3,2423.8,3.2078]
[1750757637049,3.2078,2424.3,2423.9,1.4222]
[1750757637854,3.2078,2424.3,2423.6,1.20413438]
[1750757638055,1.3992,2424.2,2423.6,1.20413438]
[1750757638358,3.2078,2424.0,2423.6,1.20413438]
[1750757638556,1.3992,2424.2,2423.7,1.357]
[1750757639359,1.3992,2424.2,2423.5,1.86373438]
[1750757639553,1.3992,2424.2,2423.5,2.0166]
[1750757639750,3.2078,2424.0,2423.5,2.0166]
[1750757640350,3.2078,2423.7,2423.1,3.2078]
[1750757640558,3.2078,2423.7,2422.9,1.90223438]
[1750757640757,3.2078,2423.7,2423.1,3.2078]
[1750757640956,3.2078,2423.7,2423.0,1.3986]
[1750757641957,3.2078,2423.4,2422.9,0.6675]
[1750757642256,3.2078,2423.4,2422.7,0.21753341]
[1750757642458,3.2078,2423.4,2422.9,1.3986]
[1750757644658,3.2078,2423.4,2422.4,3.8641]
[1750757644862,3.2078,2423.1,2422.5,1.3486]
[1750757645067,3.2078,2424.1,2422.8,3.2078]
[1750757645361,3.2078,2423.8,2423.1,3.2078]
[1750757645558,3.2078,2423.5,2422.9,1.20413438]
[1750757645761,3.2078,2423.5,2423.0,1.3486]
[1750757645961,3.2078,2423.1,2423.0,1.3486]
[1750757646172,3.2078,2423.1,2422.5,4.79585165]
[1750757646173,3.2078,2423.5,2422.5,4.41193438]
[1750757646471,1.3815,2423.4,2422.6,1.3486]
[1750757647056,3.2078,2423.5,2422.6,1.3486]
[1750757647662,3.2078,2423.1,2422.6,1.3486]
[1750757647863,3.2078,2422.8,2422.4,0.6563]
[1750757648057,3.2078,2422.8,2422.2,2.24425165]
[1750757648058,3.2078,2422.5,2422.2,0.6562]
[1750757648563,0.4078855,2422.7,2421.8,4.41193438]
[1750757648752,3.2078,2421.9,2421.0,1.20413438]
[1750757648958,5.21950896,2423.2,2420.9,1.3591]
[1750757648959,3.2078,2421.4,2420.9,1.3591]
[1750757649166,1.4247,2422.6,2420.5,0.6997]
[1750757649167,3.2078,2421.1,2420.5,0.6997]
[1750757649466,3.2078,2421.0,2420.6,0.08262414]
[1750757649663,3.2078,2421.0,2420.7,1.4188]
[1750757650058,3.2078,2421.0,2420.6,0.08262414]
[1750757650258,3.2078,2420.8,2420.6,0.08262414]
[1750757650463,3.2078,2421.4,2420.7,1.4188]
[1750757650665,3.2078,2421.4,2420.6,3.29042414]
[1750757650666,3.2078,2421.0,2420.6,3.29042414]
[1750757651061,1.3653,2421.3,2420.8,0.0144934]
[1750757651260,3.2078,2421.0,2420.8,0.0144934]
[1750757651963,3.2078,2421.0,2420.9,0.0144934]
[1750757652167,3.2078,2421.3,2420.9,0.0144934]
[1750757652563,3.2078,2421.3,2420.9,0.03530958]
[1750757652763,3.2078,2421.0,2420.9,0.03530958]
[1750757653559,3.2078,2421.0,2420.9,0.05610223]
[1750757654164,3.2078,2422.5,2420.9,8.26390223]
[1750757654364,3.2078,2421.5,2420.9,3.26390223]
[1750757654568,3.2078,2422.2,2421.2,0.05657636]
[1750757654771,3.2078,2421.6,2421.3,1.4153]
[1750757655159,3.2078,2421.9,2421.3,1.4153]
[1750757655566,3.2078,2421.9,2421.6,0.05657636]
[1750757656670,1.3895,2422.7,2421.7,4.61697636]
[1750757656671,3.2078,2422.2,2421.7,4.61697636]
[1750757656872,3.2078,2422.2,2421.8,1.3526]
[1750757657374,3.2078,2422.3,2421.8,1.3526]
[1750757657765,3.2078,2422.9,2422.0,0.05657636]
[1750757657967,3.2078,2422.4,2422.0,0.05657636]
[1750757658167,3.2078,2422.1,2422.0,0.05657636]
[1750757660870,8.2078,2422.1,2422.0,0.07743435]
[1750757661474,8.2078,2422.1,2421.1,1.3307]
[1750757661679,3.2078,2421.4,2421.1,1.3307]
[1750757661977,3.2078,2421.4,2421.2,0.01375571]
[1750757662670,1.4233,2421.3,2421.2,0.01375571]
[1750757663978,6.4233,2421.3,2420.4,1.338]
[1750757664274,3.2078,2421.0,2420.4,1.338]
[1750757664474,4.6311,2421.3,2420.4,1.338]
[1750757664668,3.2078,2421.0,2420.4,1.338]
[1750757665177,3.2078,2420.7,2420.0,3.2078]
[1750757665370,3.2078,2420.7,2420.1,1.4172]
[1750757666172,3.2078,2421.0,2420.4,3.2078]
[1750757666371,3.2078,2421.0,2420.5,1.4172]
[1750757666769,3.2078,2421.3,2420.5,1.4172]
[1750757666969,3.2078,2421.3,2420.7,3.2078]
[1750757667170,3.2078,2421.7,2420.8,1.4172]
[1750757667371,3.2078,2421.7,2421.0,3.2078]